Cogmind - Beta 16.1 @@@ ROGUE MODE // 2026.02.24 @ 20:59:21 Player: SelfCookedBird Result: Destroyed by Autobeam Turret with Autobeam Performance ------------- Evolutions (0) 0 Regions Visited (3) 600 Robots Destroyed (16) 80 Value Destroyed (356) 356 Prototype IDs (0) 0 Alien Tech Used (0) 0 Bonus (-100) -100 TOTAL SCORE: 936 Bonus ------- Follower Combat Kills 30 Friendly Fire -130 Cogmind --------- Core Integrity 0/250 Matter 246/300 Energy 169/200 System Corruption 0% Temperature Cool (12) Movement Core (100) Ox1 Location -10/Subcaves Parts ------- > --- POWER (1) -------- Subdweller Power Source > --- PROPULSION (2) --- (None) > --- UTILITY (2) ------ (None) > --- WEAPON (2) ------- (None) > --- INVENTORY (5) ---- Wheel Signal Interpreter Datajack Peak State ------------ > --- POWER ------------ Light Nuclear Core > --- PROPULSION ------- Aluminum Leg Aluminum Leg > --- UTILITY ---------- ECM Suite Hardened Light Armor Plating > --- WEAPON ----------- Mini Grenade Launcher Datajack > --- INVENTORY -------- Wheel Scrap Suit Signal Interpreter Datajack [Rating: 12] Favorites ----------- Power Light Ion Engine Engine Light Ion Engine Power Core Light Nuclear Core Propulsion Aluminum Leg Leg Aluminum Leg Flight Unit Flight Unit Utility ECM Suite Device ECM Suite Protection Hardened Light Armor Plating Weapon Datajack Energy Gun EM Pulse Gun Ballistic Gun Light Assault Rifle Launcher Mini Grenade Launcher Special Melee Weapon Datajack Build | -11 -10 -10 -10 ------- Run | Yrd Mat Min Sub Slots Evolved . | . . . . Power . | . . . . Propulsion . | . . . . Utility . | . . . . Weapon . | . . . . Parts Attached 23 | 5 6 10 2 Power 6 | 1 1 3 1 Engine 5 | 1 1 2 1 Core 1 | . . 1 . Reactor . | . . . . Propulsion 7 | 2 . 4 1 Treads . | . . . . Leg 3 | 2 . 1 . Wheel . | . . . . Hover . | . . . . Flight 4 | . . 3 1 Utility 3 | . 3 . . Device 1 | . 1 . . Storage . | . . . . Processor . | . . . . Hackware . | . . . . Protection 2 | . 2 . . Artifact . | . . . . Weapon 7 | 2 2 3 . Energy Gun 1 | 1 . . . Energy Cannon . | . . . . Ballistic Gun 1 | 1 . . . Ballistic Cannon . | . . . . Launcher 3 | . 1 2 . Special Weapon . | . . . . Impact Weapon . | . . . . Slashing Weapon . | . . . . Piercing Weapon . | . . . . Special Melee Weapon 2 | . 1 1 . Unidentified Prototypes . | . . . . Parts Lost 7 | . . . 7 Power 1 | . . . 1 Propulsion 3 | . . . 3 Utility 1 | . . . 1 Weapon 2 | . . . 2 Highest Loss Streak 5 | . . . 5 To Critical Strikes . | . . . . Average Backups 3 | . 2 4 3 Power . | . . . . Propulsion . | . 1 1 1 Utility 1 | . 1 2 1 Weapon . | . . . . Tool/Special . | . . . . Unused Backups 6 | . 1 1 4 Power . | . . . . Propulsion 1 | . . . 1 Utility 4 | . 1 1 2 Weapon . | . . . . Tool/Special 1 | . . . 1 Average Slot Usage (%) 87 | . 93 92 69 Engine 12 | . 14 8 13 Core 1 | . . 5 . Leg 17 | . 28 13 . Flight 9 | . . 14 22 Device 10 | . 8 14 10 Protection 8 | . 13 6 . Energy Gun 1 | . 2 . . Ballistic Gun 3 | . 6 . . Launcher 11 | . 11 14 8 Special Melee Weapon 10 | . 7 14 14 Peak Build Rating 12 | 5 9 12 9 Average Rating 7 | 3 8 9 5 On Entrance 5 | . 5 9 8 Avg Prop Armor Cover (%) 9 | . . 9 . Naked Turns . | . . . . Heaviest Build 14 | 6 14 14 10 Greatest Support 20 | 20 20 20 12 Greatest Overweight (x) 3 | . . 3 2 Average Overweight (x) . | . . . . Largest Inventory Capacity 5 | 5 5 5 5 Average Capacity 5 | 5 5 5 5 Most Carried 5 | 1 5 5 5 Average Carried 3 | . 3 4 4 Final Capacity 5 | 5 5 5 5 Final Carried 5 | 1 5 5 3 Class Distribution -------------------- 100% | Mutant Dominant Class ---------------- Mutant | -10/Materials Mutant | -10/Mines Mutant | -10/Subcaves Resources | -11 -10 -10 -10 ----------- Run | Yrd Mat Min Sub Matter Collected 541 | 252 . 230 59 Remotely . | . . . . Salvage Created 268 | 40 . 141 87 Parts 32 | 3 . 17 12 Haulers Intercepted . | . . . . Recyclers Shooed . | . . . . Parts Field Recycled . | . . . . Retrieved Matter . | . . . . Parts Self-Destructed 7 | . . . 7 Prevented . | . . . . Parts Restored . | . . . . Kills | -11 -10 -10 -10 ------- Run | Yrd Mat Min Sub Combat Hostiles Destroyed 16 | 1 . 9 6 Guns 1 | 1 . . . AOE 15 | . . 9 6 Classes Destroyed 4 | 1 . 1 2 Swarmer 10 | . . 6 4 Grunt 5 | 1 . 3 1 Subdweller 1 | . . . 1 Scientist 1 | . . . 1 Best Kill Streak 5 | 1 . 3 5 Combat Bots Only 5 | 1 . 3 5 Max Kills in Single Turn 3 | 1 . 3 2 Gunslinging . | . . . . Exploded 3 | . . 3 2 Melee . | . . . . Uniques/NPCs Destroyed . | . . . . Combat | -11 -10 -10 -10 -------- Run | Yrd Mat Min Sub Hostile Shots Fired 116 | 2 11 6 97 Missed 61 | 1 4 2 54 Hits 55 | 1 7 4 43 Projectile 55 | 1 7 4 43 Critical Strikes 1 | . . . 1 Damage Taken 631 | 10 91 79 451 Core 250 | . 11 8 231 Absorbed by Shields . | . . . . Core Remaining (%) 100 | 100 . . . Volleys Fired 17 | 2 . 7 8 Largest 2 | 2 . 1 1 Hottest 60 | 60 . 30 33 Shots Fired 19 | 4 . 7 8 Gun 4 | 4 . . . Cannon . | . . . . Launcher 15 | . . 7 8 Special . | . . . . Kinetic 2 | 2 . . . Thermal . | . . . . Explosive 15 | . . 7 8 Electromagnetic 2 | 2 . . . Robot Hit Streak 2 | 1 . 2 2 Robot Miss Streak 1 | 1 . 1 1 Penetration Max . | . . . . Secondary Targets . | . . . . Shots Hit Robots 13 | 2 3 3 5 Core Hits 20 | 1 . 10 9 Critical Kills . | . . . . Critical Parts Destroyed . | . . . . Critical Strikes . | . . . . Melee Attacks 5 | . 4 1 . Impact . | . . . . Slashing . | . . . . Piercing . | . . . . Sneak Attacks 3 | . 2 1 . Combat Hostiles . | . . . . Follow-up Attacks . | . . . . Damage Inflicted 1175 | 30 . 590 555 Guns 30 | 30 . . . Cannons . | . . . . Explosions 1145 | . . 590 555 Melee . | . . . . Ramming . | . . . . Kinetic . | . . . . Thermal . | . . . . Explosive 1145 | . . 590 555 Electromagnetic 30 | 30 . . . Impact . | . . . . Slashing . | . . . . Piercing . | . . . . Highest Corruption . | . . . . Average Corruption . | . . . . Corruption Purged . | . . . . Corruption Blocked . | . . . . Overload Shots . | . . . . Overflow Damage 32 | . . 10 22 Projectiles . | . . . . Explosions 32 | . . 10 22 Melee . | . . . . Knockbacks . | . . . . Impact . | . . . . Kinetic . | . . . . Secondary . | . . . . Self-Inflicted Damage 45 | . . 45 . Shots 3 | . . 3 . Rammed . | . . . . Targets Rammed . | . . . . Kicked . | . . . . Crushed . | . . . . Highest Temperature 26 | 26 . 8 6 Average Temperature 10 | 14 . 5 6 Received Heat Transfer 255 | 6 48 6 195 Siege Activations . | . . . . Martial Activations . | . . . . Shielding Activations . | . . . . Robots Disrupted . | . . . . Combat Hostiles . | . . . . Robots Corrupted . | . . . . Combat Hostiles . | . . . . Parts Fried . | . . . . Impact Corruptions . | . . . . Robots Melted . | . . . . Combat Hostiles . | . . . . Parts Melted . | . . . . Heat Transferred . | . . . . Parts Sabotaged . | . . . . Parts Stolen . | . . . . Parts Stripped . | . . . . Power Chain Reactions . | . . . . Alert | -11 -10 -10 -10 ------- Run | Yrd Mat Min Sub Maximum Alert Level . | . . . . Low Security (%) 100 | 100 100 100 . Level 1 . | . . . . Level 2 . | . . . . Level 3 . | . . . . Level 4 . | . . . . Level 5 . | . . . . High Security . | . . . . Max Security . | . . . . Peak Influence 192 | 20 15 192 . Initial 6 | . 6 . . Average 38 | 3 . 102 . Influence Increases 447 | 20 15 302 110 Destroy 0b10 Robot/C 300 | 20 . 180 100 Destroy Leader 40 | . . 30 10 Allied During Kill 4 | . . 4 . Disable Machine 30 | . . 30 . Destroy Structure 58 | . . 58 . Partial Spotted 15 | . 15 . . Influence Decreases 427 | 10 25 160 232 Entered New Map 78 | . 4 . 74 Time Decay 279 | 10 21 160 88 Lost Part 50 | . . . 50 Lost Ally 20 | . . . 20 Squads Dispatched . | . . . . Investigation . | . . . . Extermination . | . . . . Reinforcement . | . . . . Assault . | . . . . Garrison . | . . . . Intercept . | . . . . Searches Triggered . | . . . . Construction Impeded . | . . . . Haulers Reinforced . | . . . . Active Scanning Responses . | . . . . Cargo Convoy Interrupts . | . . . . Stealth | -11 -10 -10 -10 --------- Run | Yrd Mat Min Sub Distress Signals 1 | . 1 . . Communications Jammed . | . . . . Distress Signals . | . . . . Times Spotted 35 | 1 9 9 16 Peak Tracking Total 8 | 1 3 3 8 Tactical Retreats 6 | . 6 . . ECM-based Alert Blocks 8 | . 8 . . Traps | -11 -10 -10 -10 ------- Run | Yrd Mat Min Sub Traps Triggered . | . . . . Indirectly . | . . . . Trap Hack Attempts . | . . . . Triggered . | . . . . Disarmed . | . . . . Reprogrammed . | . . . . Reused . | . . . . Traps Extracted . | . . . . Installed . | . . . . Triggered . | . . . . Machines | -11 -10 -10 -10 ---------- Run | Yrd Mat Min Sub Machines Disabled 5 | . . 2 3 Max in Single Turn 3 | . . 2 3 Machines Repaired . | . . . . Machines Dismantled . | . . . . Machines Sabotaged . | . . . . Overloaded Fab Kills . | . . . . Hacking | -11 -10 -10 -10 --------- Run | Yrd Mat Min Sub Machines Accessed 2 | . 2 . . Terminals 1 | . 1 . . Fabricators . | . . . . Repair Stations . | . . . . Recycling Units 1 | . 1 . . Scanalyzers . | . . . . Garrison Access . | . . . . Total Hacks 4 | . 4 . . Successful 4 | . 4 . . Failed . | . . . . Catastrophic . | . . . . Database Lockouts . | . . . . Manual . | . . . . Terminals 2 | . 2 . . Fabricators . | . . . . Repair Stations . | . . . . Recycling Units 2 | . 2 . . Scanalyzers . | . . . . Garrison Access . | . . . . Terminal Hacks 2 | . 2 . . Record 1 | . 1 . . Locate Traps 1 | . 1 . . Fabricator Hacks . | . . . . Repair Station Hacks . | . . . . Recycling Unit Hacks 2 | . 2 . . Process 1 | . 1 . . Report Inventory 1 | . 1 . . Scanalyzer . | . . . . Garrison Access Hacks . | . . . . Unauthorized Hacks . | . . . . Terminals . | . . . . Fabricators . | . . . . Repair Stations . | . . . . Recycling Units . | . . . . Scanalyzers . | . . . . Garrison Access . | . . . . Data Cores Recovered . | . . . . Used . | . . . . Hacking Detections 1 | . 1 . . Full Trace Events . | . . . . Feedback Events . | . . . . Feedback Blocked . | . . . . Robot Schematics Acquired . | . . . . Robots Built . | . . . . Authchips . | . . . . Time . | . . . . Total Robot Build Rating . | . . . . Part Schematics Acquired . | . . . . Parts Built . | . . . . Authchips . | . . . . Time . | . . . . Total Part Build Rating . | . . . . Part Studies Acquired . | . . . . Parts Repaired . | . . . . Time . | . . . . Parts Recycled . | . . . . Recycled Matter 42 | . 42 . . Retrieved Matter . | . . . . Retrieved Components . | . . . . Parts Scanalyzed . | . . . . Part Schematics Acquired . | . . . . Parts Damaged . | . . . . Bothacking | -11 -10 -10 -10 ------------ Run | Yrd Mat Min Sub Used RIF Installer . | . . . . Robots Hacked 3 | . 2 1 . Non-combat 3 | . 2 1 . Combat . | . . . . Robot Hacks Applied 4 | . 3 1 . parse_system 3 | . 2 1 . no_distress 1 | . 1 . . Relay Couplers Released . | . . . . Fabnet Peak Effective % . | . . . . Robots Rewired . | . . . . Allies Hacked . | . . . . Hacks Repelled . | . . . . Allies | -11 -10 -10 -10 -------- Run | Yrd Mat Min Sub Total Allies 3 | . . 3 . Largest Group 3 | . . 3 3 Highest-Rated Group 74 | . . 74 74 Highest-Rated Ally 31 | . . 31 31 Total Orders . | . . . . Ally Attacks 20 | . . 3 17 Total Damage 336 | . . 22 314 Kills 1 | . . . 1 Allies Corrupted . | . . . . Allies Melted . | . . . . Intel | -11 -10 -10 -10 ------- Run | Yrd Mat Min Sub Active Infowar (turns) 794 | . 290 341 163 ECM 794 | . 290 341 163 Robot Analysis Total . | . . . . Derelict Logs Recovered 1 | . . . 1 Drone Launches . | . . . . Drone Recoveries . | . . . . Exploration | -11 -10 -10 -10 ------------- Run | Yrd Mat Min Sub Turns Passed 1136 | 101 480 341 214 Spaces Moved 1206 | 81 382 467 276 Core 15 | 14 . . 1 Treads . | . . . . Legs 560 | 67 382 111 . Wheels . | . . . . Hover . | . . . . Flight 631 | . . 356 275 Fastest Speed 37 | 50 120 37 37 Average Speed 83 | 107 120 61 64 Slowest Speed 290 | 120 120 290 200 Overloaded Moves . | . . . . Propulsion Burnouts . | . . . . Robots Hopped . | . . . . Potential Cave-ins . | . . . . Cave-ins Triggered . | . . . . Exploration Rate (%) 37 | 5 54 72 18 Regions Visited 3 Branch Regions 2 Pre-discovered Areas 1 | . . 1 . Known Exits Taken . | . . . . Unknown Exits Taken 3 | 1 1 1 . Scrap Searched 3 | . . 2 1 Spaces Dug . | . . . . Terrain Destroyed 127 | . . 64 63 Melee . | . . . . Projectile . | . . . . AOE 127 | . . 64 63 Terrain Rammed . | . . . . Walls Destroyed . | . . . . Machines Disabled . | . . . . Actions | -11 -10 -10 -10 --------- Run | Yrd Mat Min Sub Total 1309 | 88 400 516 305 Wait 33 | . 2 17 14 Move 1203 | 80 381 466 276 Hop . | . . . . Pick Up 9 | 1 5 3 . Fast Attach 9 | 5 2 . 2 Attach 2 | . . . 2 Detach 2 | . . . 2 Swap 15 | . 4 11 . Drop 14 | . 2 11 1 Fire 17 | 2 . 7 8 Melee 5 | . 4 1 . Ram . | . . . . Kick . | . . . . Crush . | . . . . Escape Stasis . | . . . . Rewire . | . . . . Trap . | . . . . Miscellaneous . | . . . . Route ------- -11/Scrapyard -10/Materials (discovered 2 exits: [*Mat] / [*Min]) -10/Mines (discovered 2 exits: [*Mat] / [*Sub]) -10/Subcaves (discovered 2 exits: [*Rec] / [*Scr]) History --------- Turn | Location | Event 2 | -11/Scrapyard | Met Revision 17 77 | -11/Scrapyard | Discovered new exit (range 8) 102 | -11/Scrapyard | Entered Materials 313 | -10/Materials | Build established: Mutant 522 | -10/Materials | Discovered new exit (range 6) 576 | -10/Materials | Discovered new exit (range 6) 582 | -10/Materials | Entered Mines 612 | -10/Mines | Escorted by a lone wolf Derelict 632 | -10/Mines | Learned location of Storage (-9) 704 | -10/Mines | Found a Scrap Suit stashed away for nefarious purposes 709 | -10/Mines | Found Scrap Suit 847 | -10/Mines | Discovered new exit (range 7) 850 | -10/Mines | Discovered new exit (range 10) 896 | -10/Mines | Received a Rocket Launcher from a helpful Derelict 923 | -10/Mines | Entered Subcaves 923 | -10/Subcaves | Accompanied by 3 allies 924 | -10/Subcaves | Approached by a straggling Scientist 928 | -10/Subcaves | Led the pair of lost Derelicts to an unsafe place 983 | -10/Subcaves | Ambushed by swarm of Subdwellers 1017 | -10/Subcaves | A swath of the cavern ceiling suddenly collapsed 1040 | -10/Subcaves | Scientist uncovered a shortcut to Scraptown 1094 | -10/Subcaves | Learned 4 Materials zone layouts 1113 | -10/Subcaves | Discovered new exit (range 16) 1119 | -10/Subcaves | Core integrity fell below 50% 1124 | -10/Subcaves | Ambushed by Subdweller buried in earth 1136 | -10/Subcaves | Core integrity fell below 20% 1137 | -10/Subcaves | Destroyed by Autobeam Turret with Autobeam Last Messages --------------- Flight Unit destroyed. S-10 Pest destroyed. Destroyed Flight Unit. S-10 Pest destroyed. Acquired 2 matter. Machine disabled. Flight Unit fries itself beyond repair. S-10 Pest destroyed. [Achievement: Do Not Disturb] JS-1DO(R): "ARGHSUB!" JS-1DO(R) destroyed. Lgt. Assault Rifle fries itself beyond repair. Lgt. Ion Engine destroyed. Acquired Sub. Power Source. Lgt. Assault Rifle fries itself beyond repair. The unstable cave ceiling collapses. Datajack destroyed. Mak. Flight Unit destroyed. Rocket Launcher destroyed. [Achievement: First Step to Greatness] Map ----- +----------------------------------------------------+ | ?????????????????????????????????????????????????? | | ?????????????????????????????????????????????????? | | ?????????????????????????????????????????????????? | | ?????????????????????????????????????????????????? | | ?????????????????????????????????????????????????? | | ?????????????????????????????????????????????????? | | ?????????????????????????????????????????????????? | | ?????????????????????????????????????????????????? | | ?????????????????????????????????????????????????? | | ?????????????????????????????????????????????????? | | ?????????????????????????????????????????????????? | | ?????????????????????????????????????????????????? | | ?????????????????????????????????????????????????? | | ?????????????????????????????????????????????????? | | ????????????????????????????????????????? ???????? | | ???????????????????????????????????????? ????????? | | ??????????????????????????????????????# ?????????? | | ????????????????????????????????????? #?????????? | | ????????????????????????????????????# #??????????? | | ??????????????????????######???????# #???????????? | | ?????????????#######?## ###????# #????????????? | | ?????????????# "# #???# #?????????????? | | ?????????????# ##?# #??????????????? | | ?????????????# !%& ## #???????????????? | | ?????????????# t ##???????????????? | | ?????????????#< @ #???????????????? | | ?????????????# t ####???????????????? | | ?????????????# # ##????????????????? | | ????????????# # ##RR #????????????????? | | ????????????## ###### ##????????????????? | | ?????????????# ###???## ## #??????????????? | | ?????????????#####??????## " " ??????????? | | ????????????????????????# "####"# # ????????? | | ????????????????????????# "##???##???????????????? | | #??????????####?#####???# #####?????????????????? | | ############ ### ##### ##????????????????? | | # # ## # ## ## # """ #????????????????? | | ### """ #????????????????? | | ## " #???????????????? | | # ## # ## "# #???????????????? | | ################ "###" ## #???????????????? | | #??????????????# " """"##? #???????????????? | | #??????????????# #####"#?? ##???????????????? | | #??????????????# ##?""# #???###????????????????? | | #??????????????# #""""? #??????????????????????? | | ???????????????## #$""## #??????????????????????? | | ????????????????# #"""#""#??????????????????????? | | ????????????????# #### #???????????????????????? | | ????????????????## #???????????????????????? | | ????????????????## ###???????????????????????? | +----------------------------------------------------+ Best States ------------- Heat Dissipation 25 Energy Generation 14 Energy Capacity 250 Matter Stores 300 Matter Capacity 300 Sight Range 16 Terrain Scan Density 10 ECM Strength 1 Armor Coverage 150 Weapon Shielding 33 Evasion (%) 62 Item Schematics ----------------- None Robot Schematics ------------------ None Fabricated ------------ Nothing Repaired ---------- Nothing Studied --------- None Alien Tech Used ----------------- None Achievements -------------- Backstab DATA ERROR: Steam Global Achievement% Do Not Disturb First Step to Greatness Nice Directions, Buddy Challenges ------------ None Game ------ Seed RocketTiamatWarhead Manual? 0 Play Time 00:26:31 Cumulative 0.6 hours Start 2026.02.24 @ 20:33:51 End 2026.02.24 @ 20:59:21 Sessions 1 Manual Loads 0 Difficulty Rogue Special Mode None Game No. 2 Rogue 2 Adventurer 0 Explorer 0 Win Type - Total 0 Types 0/0/0/0/0/0/0/0/0/0 Lore% 0 Gallery% 3 Achievement% 3 Wizard Run 0 Options --------- Layout 1 ASCII 0 Keyboard 1 Movement Arrows Keybinds 0 Fullscreen 1 Font 32/SmallcapsGlow Map View 77x35 Zoom Use 0% Tactical HUD 0 Map Filters NONE Filters NONE Steam 0 RUN: ab49bc44-6d8f-49f4-91ec-5b309c5ff791